[Event "African Games Rapid Open 2019"]
[Site "Casablanca"]
[Date "2019.08.27"]
[Round "8.7"]
[White "Ssegwanyi, Arthur"]
[Black "Osunfuyi, Abimbola"]
[Result "1-0"]
[ECO "B23"]
[WhiteElo "2335"]
[BlackElo "2235"]
[Annotator "NA"]
[PlyCount "47"]
[EventDate "2019.08.26"]
[EventType "team-tourn"]
[EventCountry "MAR"]
[SourceTitle "playchess.com"]
[Source "ChessBase"]
[SourceQuality "1"]
[TimeControl "900+10"]

1. e4 {[%emt 0:00:00]} c5 {[%emt 0:00:00]} 2. Nc3 {[%emt 0:00:00]} d6 {[%emt 0:00:11]} 3. d4 {[%emt 0:00:17]} cxd4 {[%emt 0:00:02]} 4. Qxd4 {[%emt 0:00:02]} Nc6 {[%emt 0:01:08]} 5. Qd2 {[%emt 0:00:02]} g6 {[%emt 0:00:07]} 6. b3 Bh6 {[%emt 0:00:17]} 7. f4 {[%emt 0:00:24]} Nf6 {[%emt 0:00:18]} 8. Bb2 {[%emt 0:00:44]} O-O {[%emt 0:00:05]} 9. O-O-O {[%emt 0:00:14]} Bg4 {[%emt 0:00:03]} 10. Be2 {[%emt 0:00:29]} Rc8 {[%emt 0:00:45]} 11. Kb1 {[%emt 0:00:12]} Bxe2 {[%emt 0:01:20]} 12. Ngxe2 {[%emt 0:00:03]} b5 {[%emt 0:00:20]} 13. Qd3 {[%emt 0:04:50]} a6 {[%emt 0:01:26]} 14. e5 {[%emt 0:00:46]} Ne8 {[%emt 0:00:49]} 15. Nd5 {[%emt 0:01:39]} Bg7 {[%emt 0:02:11]} 16. h4 {[%emt 0:01:00]} e6 {[%emt 0:01:49]} 17. h5 {[%emt 0:00:24]} exd5 {[%emt 0:02:16]} 18. hxg6 {[%emt 0:00:59]} fxg6 {[%emt 0:00:30]} 19. Qxd5+ {[%emt 0:00:52]} Kh8 {[%emt 0:01:06]} 20. Qe6 {[%emt 0:00:14]} Ne7 {[%emt 0:00:50]} 21. exd6 {[%emt 0:01:32]} Nxd6 {[%emt 0:00:29]} 22. Rxh7+ {[%emt 0:00:18]} Kxh7 {[%emt 0:00:03]} 23. Rh1+ {[%emt 0:00:01]} Bh6 {[%emt 0:00:11]} 24. Rxh6+ 1-0

[Event "African Games Rapid Open 2019"]
[Site "Casablanca"]
[Date "2019.08.27"]
[Round "8.8"]
[White "Zaibi, Amir"]
[Black "Mphungu, Gerrard"]
[Result "1-0"]
[ECO "D15"]
[WhiteElo "2367"]
[BlackElo "2107"]
[Annotator "NA"]
[PlyCount "136"]
[EventDate "2019.08.26"]
[EventType "team-tourn"]
[EventCountry "MAR"]
[SourceTitle "playchess.com"]
[Source "ChessBase"]
[SourceQuality "1"]
[TimeControl "900+10"]

1. d4 {[%emt 0:00:00]} d5 {[%emt 0:00:00]} 2. Nf3 {[%emt 0:00:00]} Nf6 {[%emt 0:00:00]} 3. c4 {[%emt 0:00:00]} c6 {[%emt 0:00:01]} 4. Nc3 {[%emt 0:00:04]} Bf5 {[%emt 0:00:20]} 5. Qb3 {[%emt 0:00:17]} Bc8 {[%emt 0:02:00]} 6. cxd5 {[%emt 0:01:15]} cxd5 {[%emt 0:02:04]} 7. Bf4 {[%emt 0:00:09]} e6 {[%emt 0:02:08]} 8. e3 {[%emt 0:00:18]} Bd6 {[%emt 0:01:46]} 9. Bb5+ {[%emt 0:01:07]} Nc6 {[%emt 0:01:34]} 10. Ne5 {[%emt 0:00:03]} Qc7 {[%emt 0:03:13]} 11. Rc1 {[%emt 0:01:34]} Bd7 {[%emt 0:01:09]} 12. O-O {[%emt 0:00:19]} a6 {[%emt 0:01:19]} 13. Bxc6 {[%emt 0:01:43]} Bxc6 {[%emt 0:00:01]} 14. Nxc6 {[%emt 0:01:36]} bxc6 {[%emt 0:00:02]} 15. Bg3 {[%emt 0:01:21]} O-O {[%emt 0:00:05]} 16. Na4 {[%emt 0:00:21]} Ne4 {[%emt 0:00:53]} 17. Qd3 {[%emt 0:00:33]} Rfb8 {[%emt 0:00:16]} 18. Rc2 {[%emt 0:00:09]} Rb5 {[%emt 0:00:13]} 19. Rfc1 {[%emt 0:00:10]} Bxg3 {[%emt 0:00:22]} 20. hxg3 {[%emt 0:00:04]} Qa5 21. Rxc6 {[%emt 0:00:25]} g6 {[%emt 0:00:43]} 22. b3 {[%emt 0:00:09]} Rbb8 {[%emt 0:00:17]} 23. Rc7 {[%emt 0:00:16]} Kg7 {[%emt 0:00:10]} 24. g4 {[%emt 0:00:20]} Nd6 {[%emt 0:00:08]} 25. R7c5 {[%emt 0:00:22]} Qd8 {[%emt 0:00:05]} 26. Rc6 {[%emt 0:00:23]} Ne4 27. Qe2 {[%emt 0:01:52]} Rc8 {[%emt 0:00:22]} 28. g3 {[%emt 0:00:37]} Rxc6 {[%emt 0:00:11]} 29. Rxc6 {[%emt 0:00:01]} a5 {[%emt 0:00:09]} 30. Kg2 {[%emt 0:00:12]} Rc8 {[%emt 0:00:06]} 31. Rxc8 Qxc8 32. f3 {[%emt 0:00:29]} Nd6 {[%emt 0:00:12]} 33. Nc5 {[%emt 0:00:03]} Qc6 {[%emt 0:00:13]} 34. Qa6 {[%emt 0:00:12]} Qxa6 35. Nxa6 {[%emt 0:00:02]} Nb5 {[%emt 0:00:33]} 36. Kf2 {[%emt 0:00:17]} Kf6 {[%emt 0:00:11]} 37. Nc5 {[%emt 0:00:08]} Ke7 {[%emt 0:00:13]} 38. Nb7 {[%emt 0:00:29]} a4 {[%emt 0:00:06]} 39. bxa4 {[%emt 0:00:02]} Nc3 {[%emt 0:00:02]} 40. a5 {[%emt 0:00:08]} Kd7 {[%emt 0:00:06]} 41. Nc5+ {[%emt 0:00:28]} Kc6 {[%emt 0:00:11]} 42. a4 {[%emt 0:00:10]} h6 {[%emt 0:00:14]} 43. Ke1 {[%emt 0:00:19]} Nb1 {[%emt 0:00:06]} 44. a6 {[%emt 0:00:42]} Kb6 {[%emt 0:00:08]} 45. Ke2 {[%emt 0:00:17]} Na3 {[%emt 0:00:02]} 46. Kd3 {[%emt 0:00:01]} Nc4 {[%emt 0:00:01]} 47. e4 {[%emt 0:00:09]} Nb2+ {[%emt 0:00:03]} 48. Ke3 {[%emt 0:00:08]} Nc4+ {[%emt 0:00:01]} 49. Kd3 {[%emt 0:00:35]} Nb2+ {[%emt 0:00:01]} 50. Kc3 {[%emt 0:00:01]} Nc4 {[%emt 0:00:01]} 51. exd5 {[%emt 0:00:05]} exd5 {[%emt 0:00:01]} 52. Kd3 {[%emt 0:00:04]} Na5 {[%emt 0:00:24]} 53. Nd7+ {[%emt 0:00:34]} Kxa6 {[%emt 0:00:06]} 54. Ne5 {[%emt 0:00:01]} Kb6 {[%emt 0:00:09]} 55. Nxf7 Nc4 56. Nxh6 {[%emt 0:00:15]} Nb2+ {[%emt 0:00:04]} 57. Ke3 {[%emt 0:00:01]} Nxa4 {[%emt 0:00:11]} 58. Ng8 {[%emt 0:00:36]} g5 {[%emt 0:00:11]} 59. Ne7 {[%emt 0:00:12]} Nc3 {[%emt 0:00:11]} 60. Kd3 {[%emt 0:00:07]} Nd1 {[%emt 0:00:06]} 61. Nxd5+ {[%emt 0:00:02]} Kc6 {[%emt 0:00:02]} 62. Ne7+ {[%emt 0:00:06]} Kd7 {[%emt 0:00:03]} 63. Nf5 {[%emt 0:00:02]} Ke6 {[%emt 0:00:04]} 64. Ne3 {[%emt 0:00:19]} Nf2+ {[%emt 0:00:04]} 65. Kc4 {[%emt 0:00:02]} Nh1 {[%emt 0:00:05]} 66. Nf5 {[%emt 0:00:08]} Nf2 {[%emt 0:00:06]} 67. d5+ {[%emt 0:00:00]} Kd7 {[%emt 0:00:03]} 68. Kd4 {[%emt 0:00:05]} Nd1 1-0

[Event "African Games Rapid Open 2019"]
[Site "Casablanca"]
[Date "2019.08.27"]
[Round "8.9"]
[White "Chumfwa, Stanley"]
[Black "Elarabi, Abobker Mohamed"]
[Result "1-0"]
[ECO "C85"]
[WhiteElo "2317"]
[BlackElo "2326"]
[Annotator "NA"]
[PlyCount "96"]
[EventDate "2019.08.26"]
[EventType "team-tourn"]
[EventCountry "MAR"]
[SourceTitle "playchess.com"]
[Source "ChessBase"]
[SourceQuality "1"]
[TimeControl "900+10"]

1. e4 {[%emt 0:00:00]} e5 {[%emt 0:00:00]} 2. Nf3 {[%emt 0:00:00]} Nc6 {[%emt 0:00:00]} 3. Bb5 {[%emt 0:00:00]} a6 {[%emt 0:00:00]} 4. Ba4 {[%emt 0:00:00]} Nf6 {[%emt 0:00:00]} 5. O-O {[%emt 0:00:00]} Be7 {[%emt 0:00:00]} 6. Bxc6 {[%emt 0:00:04]} dxc6 {[%emt 0:00:00]} 7. d3 {[%emt 0:00:05]} Nd7 {[%emt 0:00:48]} 8. b3 {[%emt 0:00:45]} c5 {[%emt 0:00:19]} 9. Bb2 {[%emt 0:00:10]} Bf6 {[%emt 0:00:13]} 10. Nc3 {[%emt 0:00:20]} O-O {[%emt 0:01:19]} 11. Nd5 {[%emt 0:00:08]} c6 {[%emt 0:00:03]} 12. Nxf6+ {[%emt 0:00:10]} Qxf6 {[%emt 0:00:03]} 13. Nd2 {[%emt 0:00:05]} Qh6 {[%emt 0:00:18]} 14. Nc4 {[%emt 0:00:09]} Re8 {[%emt 0:00:35]} 15. a4 {[%emt 0:00:56]} b5 {[%emt 0:00:37]} 16. Ne3 {[%emt 0:00:02]} Nf8 {[%emt 0:01:29]} 17. axb5 {[%emt 0:01:33]} cxb5 {[%emt 0:00:01]} 18. Nd5 {[%emt 0:00:01]} Qd6 {[%emt 0:00:21]} 19. f4 {[%emt 0:00:15]} exf4 {[%emt 0:00:16]} 20. Nxf4 {[%emt 0:00:02]} Ne6 {[%emt 0:01:22]} 21. Nxe6 {[%emt 0:02:07]} Rxe6 {[%emt 0:03:34]} 22. Qf3 {[%emt 0:00:37]} Ra7 {[%emt 0:00:07]} 23. Rf2 {[%emt 0:00:10]} Rg6 {[%emt 0:02:42]} 24. Qe3 {[%emt 0:02:02]} Be6 {[%emt 0:00:35]} 25. b4 {[%emt 0:00:35]} Rc7 {[%emt 0:00:32]} 26. bxc5 {[%emt 0:00:03]} Qxc5 {[%emt 0:01:01]} 27. Qxc5 {[%emt 0:00:04]} Rxc5 {[%emt 0:00:01]} 28. Rxa6 {[%emt 0:00:07]} h5 {[%emt 0:00:04]} 29. d4 {[%emt 0:02:13]} Rc8 {[%emt 0:00:41]} 30. d5 {[%emt 0:00:27]} Bf5 {[%emt 0:00:05]} 31. Rxg6 {[%emt 0:00:42]} Bxg6 {[%emt 0:00:02]} 32. Re2 {[%emt 0:01:16]} Rc4 {[%emt 0:00:29]} 33. d6 {[%emt 0:00:32]} Kf8 {[%emt 0:00:34]} 34. d7 {[%emt 0:00:03]} Ke7 {[%emt 0:00:22]} 35. Rd2 {[%emt 0:00:02]} Kd8 {[%emt 0:00:04]} 36. Bxg7 {[%emt 0:00:03]} Rc6 {[%emt 0:00:21]} 37. e5 {[%emt 0:00:03]} Bxc2 {[%emt 0:00:10]} 38. Bf6+ {[%emt 0:00:26]} Rxf6 {[%emt 0:00:01]} 39. exf6 {[%emt 0:00:01]} Bf5 {[%emt 0:00:13]} 40. Rd5 {[%emt 0:00:03]} Bxd7 {[%emt 0:00:02]} 41. Rxh5 {[%emt 0:00:01]} b4 {[%emt 0:00:07]} 42. Kf2 {[%emt 0:00:25]} b3 {[%emt 0:00:02]} 43. Rh4 {[%emt 0:00:27]} Kc7 {[%emt 0:00:08]} 44. Rb4 {[%emt 0:00:03]} Be6 {[%emt 0:00:01]} 45. h4 {[%emt 0:00:04]} Kd6 {[%emt 0:00:08]} 46. g4 {[%emt 0:03:06]} Kc5 {[%emt 0:00:12]} 47. Rb8 {[%emt 0:00:42]} Bc4 {[%emt 0:02:03]} 48. Ke3 Kd5 {Ke4+} 1-0

[Event "African Games Rapid Open 2019"]
[Site "Casablanca"]
[Date "2019.08.27"]
[Round "8.10"]
[White "Mushore, Emarald Takudzwa"]
[Black "Aderito, Pedro"]
[Result "0-1"]
[ECO "B56"]
[WhiteElo "2198"]
[BlackElo "2301"]
[Annotator "NA"]
[PlyCount "128"]
[EventDate "2019.08.26"]
[EventType "team-tourn"]
[EventCountry "MAR"]
[SourceTitle "playchess.com"]
[Source "ChessBase"]
[SourceQuality "1"]
[TimeControl "900+10"]

1. e4 {[%emt 0:00:00]} c5 {[%emt 0:00:00]} 2. Nf3 {[%emt 0:00:00]} Nc6 {[%emt 0:00:00]} 3. d4 {[%emt 0:00:00]} cxd4 {[%emt 0:00:00]} 4. Nxd4 {[%emt 0:00:02]} Nf6 {[%emt 0:00:00]} 5. Nc3 {[%emt 0:00:01]} d6 {[%emt 0:00:02]} 6. Nxc6 {[%emt 0:00:18]} bxc6 {[%emt 0:00:02]} 7. e5 {[%emt 0:00:04]} dxe5 {[%emt 0:00:03]} 8. Qxd8+ {[%emt 0:00:02]} Kxd8 {[%emt 0:00:02]} 9. Bc4 {[%emt 0:00:05]} e6 {[%emt 0:00:34]} 10. Bg5 {[%emt 0:00:07]} Kc7 {[%emt 0:00:03]} 11. O-O-O {[%emt 0:00:08]} Nd5 {[%emt 0:00:27]} 12. Ne4 {[%emt 0:00:38]} h6 {[%emt 0:00:17]} 13. Bd2 {[%emt 0:00:15]} a5 {[%emt 0:00:14]} 14. Rhe1 {[%emt 0:00:02]} Be7 {[%emt 0:01:20]} 15. Ng3 {[%emt 0:00:18]} f6 {[%emt 0:00:09]} 16. c3 {[%emt 0:01:24]} a4 {[%emt 0:00:44]} 17. Nf1 {[%emt 0:00:29]} Bd7 {[%emt 0:00:43]} 18. Kc2 {[%emt 0:00:48]} Bd6 {[%emt 0:01:16]} 19. g3 {[%emt 0:00:45]} g5 {[%emt 0:00:14]} 20. Bc1 {[%emt 0:00:17]} h5 {[%emt 0:00:24]} 21. Nd2 {[%emt 0:00:03]} g4 {[%emt 0:00:55]} 22. Ne4 {[%emt 0:00:12]} Be7 {[%emt 0:00:02]} 23. Nd2 {[%emt 0:00:38]} h4 {[%emt 0:00:46]} 24. Nf1 {[%emt 0:00:47]} Be8 {[%emt 0:00:21]} 25. Be2 {[%emt 0:00:24]} Bg6+ {[%emt 0:00:08]} 26. Bd3 {[%emt 0:00:02]} Bf7 {[%emt 0:00:05]} 27. Be4 {[%emt 0:00:20]} Bc5 {[%emt 0:00:18]} 28. Re2 {[%emt 0:00:30]} f5 {[%emt 0:01:37]} 29. Bxd5 {[%emt 0:00:03]} cxd5 {[%emt 0:00:02]} 30. Rxe5 {[%emt 0:00:05]} Bxf2 {[%emt 0:00:03]} 31. Bf4 {[%emt 0:00:04]} Kc6 {[%emt 0:00:04]} 32. Be3 {[%emt 0:00:18]} hxg3 {[%emt 0:00:12]} 33. hxg3 {[%emt 0:00:02]} Bxe3 {[%emt 0:00:08]} 34. Rxe3 {[%emt 0:00:02]} Rh1 {[%emt 0:00:12]} 35. Kd3 {[%emt 0:00:03]} Kc5 {[%emt 0:00:06]} 36. Rde1 {[%emt 0:01:03]} Rb8 {[%emt 0:00:10]} 37. Kc2 {[%emt 0:00:05]} Rg1 {[%emt 0:00:31]} 38. Nd2 {[%emt 0:00:42]} Rxe1 {[%emt 0:00:15]} 39. Rxe1 {[%emt 0:00:01]} Rh8 {[%emt 0:00:02]} 40. Nf1 {[%emt 0:00:11]} Kd6 {[%emt 0:00:09]} 41. Re2 {[%emt 0:00:41]} Bg6 {[%emt 0:00:09]} 42. Kd2 {[%emt 0:00:42]} Rh1 {[%emt 0:00:28]} 43. Ne3 {[%emt 0:02:01]} e5 {[%emt 0:01:29]} 44. Re1 {[%emt 0:00:21]} Rh3 {[%emt 0:00:06]} 45. Rg1 {[%emt 0:00:43]} Rh2+ {[%emt 0:00:25]} 46. Rg2 {[%emt 0:00:03]} Rh1 {[%emt 0:00:02]} 47. Rf2 {[%emt 0:00:11]} Ke6 {[%emt 0:00:00]} 48. Re2 {[%emt 0:00:30]} Ra1 {[%emt 0:00:34]} 49. a3 {[%emt 0:00:03]} Rg1 {[%emt 0:00:02]} 50. Rg2 {[%emt 0:00:08]} Rb1 {[%emt 0:00:22]} 51. Nd1 {[%emt 0:00:03]} Kf6 {[%emt 0:00:03]} 52. Rf2 {[%emt 0:00:34]} Kg5 {[%emt 0:00:02]} 53. Re2 {[%emt 0:00:03]} Kf6 {[%emt 0:00:12]} 54. Rf2 {[%emt 0:00:02]} Kg7 {[%emt 0:00:50]} 55. Re2 {[%emt 0:00:08]} Kf6 {[%emt 0:00:22]} 56. Rf2 {[%emt 0:00:02]} Ke6 {[%emt 0:00:04]} 57. Rf1 {[%emt 0:00:15]} Kf6 {[%emt 0:00:42]} 58. Rf2 {[%emt 0:00:59]} Ra1 {[%emt 0:00:00]} 59. Ne3 {[%emt 0:00:40]} Kg5 {[%emt 0:00:00]} 60. Nxd5 {[%emt 0:01:00]} Rb1 {[%emt 0:00:00]} 61. Ke3 {[%emt 0:00:20]} Rg1 {[%emt 0:00:00]} 62. c4 {[%emt 0:00:15]} Rxg3+ {[%emt 0:00:00]} 63. Kd2 {[%emt 0:00:04]} Rb3 {[%emt 0:00:00]} 64. Kc1 {[%emt 0:00:07]} f4 {[%emt 0:00:00]} 0-1

[Event "African Games Rapid Open 2019"]
[Site "Casablanca"]
[Date "2019.08.27"]
[Round "8.11"]
[White "Adu, Oladapo"]
[Black "Oatlhotse, Providence"]
[Result "1-0"]
[ECO "B72"]
[WhiteElo "2273"]
[BlackElo "2252"]
[Annotator "NA"]
[PlyCount "109"]
[EventDate "2019.08.26"]
[EventType "team-tourn"]
[EventCountry "MAR"]
[SourceTitle "playchess.com"]
[Source "ChessBase"]
[SourceQuality "1"]
[TimeControl "900+10"]

1. e4 {[%emt 0:00:00]} c5 {[%emt 0:00:00]} 2. Nf3 {[%emt 0:00:00]} d6 {[%emt 0:00:00]} 3. Nc3 {[%emt 0:00:00]} Nc6 {[%emt 0:00:00]} 4. d4 {[%emt 0:00:08]} cxd4 {[%emt 0:00:00]} 5. Nxd4 {[%emt 0:00:02]} g6 {[%emt 0:00:00]} 6. Be3 {[%emt 0:00:07]} Bg7 {[%emt 0:00:00]} 7. Qd2 {[%emt 0:00:06]} Nf6 {[%emt 0:00:00]} 8. Be2 {[%emt 0:00:02]} O-O {[%emt 0:00:09]} 9. O-O-O {[%emt 0:00:04]} Ng4 {[%emt 0:00:21]} 10. Bxg4 {[%emt 0:00:08]} Bxg4 {[%emt 0:00:02]} 11. f3 {[%emt 0:00:03]} Nxd4 {[%emt 0:01:20]} 12. Bxd4 {[%emt 0:00:05]} Bxd4 {[%emt 0:00:02]} 13. Qxd4 {[%emt 0:00:02]} Be6 {[%emt 0:00:02]} 14. h4 {[%emt 0:00:04]} Rc8 {[%emt 0:00:47]} 15. h5 {[%emt 0:00:03]} Rc4 {[%emt 0:00:03]} 16. Qd2 {[%emt 0:00:03]} Qa5 {[%emt 0:01:15]} 17. hxg6 {[%emt 0:00:05]} fxg6 {[%emt 0:00:05]} 18. a3 {[%emt 0:01:21]} Qe5 {[%emt 0:07:35]} 19. Rh4 {[%emt 0:01:29]} b5 {[%emt 0:00:57]} 20. Qh6 {[%emt 0:01:01]} Rf7 {[%emt 0:00:28]} 21. Nd5 {[%emt 0:02:50]} Rd4 {[%emt 0:01:18]} 22. Rxd4 {[%emt 0:00:42]} Qxd4 {[%emt 0:00:03]} 23. Qe3 {[%emt 0:00:15]} Qc4 {[%emt 0:00:45]} 24. Rh1 {[%emt 0:00:44]} Bxd5 {[%emt 0:00:51]} 25. exd5 {[%emt 0:00:02]} Qxd5 {[%emt 0:00:07]} 26. Kb1 {[%emt 0:00:19]} e5 {[%emt 0:00:26]} 27. Qe2 {[%emt 0:00:52]} Rc7 {[%emt 0:00:56]} 28. Rd1 {[%emt 0:00:06]} Qc5 {[%emt 0:00:01]} 29. Qd2 {[%emt 0:00:03]} Rc6 {[%emt 0:00:20]} 30. c3 {[%emt 0:00:22]} Qc4 {[%emt 0:00:12]} 31. Qg5 {[%emt 0:00:09]} Qe6 {[%emt 0:00:28]} 32. Qd8+ {[%emt 0:00:09]} Kg7 {[%emt 0:00:10]} 33. Qb8 {[%emt 0:00:02]} d5 {[%emt 0:00:51]} 34. Qxa7+ {[%emt 0:00:26]} Kf6 {[%emt 0:00:43]} 35. Qxh7 {[%emt 0:00:11]} Qf5+ {[%emt 0:00:16]} 36. Ka1 {[%emt 0:00:02]} Rd6 {[%emt 0:00:12]} 37. Qh8+ {[%emt 0:00:21]} Ke6 {[%emt 0:00:10]} 38. Qg8+ {[%emt 0:00:11]} Qf7 {[%emt 0:00:05]} 39. Qb8 {[%emt 0:00:15]} Qd7 {[%emt 0:00:09]} 40. Qh8 {[%emt 0:00:34]} Ke7 {[%emt 0:00:19]} 41. Qxe5+ {[%emt 0:00:06]} Kd8 {[%emt 0:00:01]} 42. Rd4 {[%emt 0:00:11]} Kc8 43. Rf4 {[%emt 0:00:06]} Kb7 {[%emt 0:00:13]} 44. g4 {[%emt 0:00:07]} Kc6 {[%emt 0:00:12]} 45. Rf6 {[%emt 0:00:06]} Rxf6 {[%emt 0:00:08]} 46. Qxf6+ {[%emt 0:00:02]} Kc5 {[%emt 0:00:05]} 47. Qxg6 {[%emt 0:00:08]} Kc4 {[%emt 0:00:30]} 48. Ka2 {[%emt 0:00:12]} b4 {[%emt 0:00:09]} 49. cxb4 {[%emt 0:00:03]} Qa4 {[%emt 0:00:08]} 50. Ka1 {[%emt 0:00:36]} d4 {[%emt 0:00:12]} 51. Qe6+ {[%emt 0:00:27]} Kd3 {[%emt 0:00:02]} 52. Qe4+ {[%emt 0:00:03]} Kd2 {[%emt 0:00:02]} 53. Qxd4+ {[%emt 0:00:03]} Kc1 {[%emt 0:00:05]} 54. Qc3+ {[%emt 0:00:02]} Kd1 {[%emt 0:00:02]} 55. g5 {[%emt 0:00:06]} 1-0

[Event "African Games Rapid Open 2019"]
[Site "Casablanca"]
[Date "2019.08.27"]
[Round "8.12"]
[White "Beukes, Dante M"]
[Black "Tissir, Mohamed"]
[Result "0-1"]
[ECO "B06"]
[WhiteElo "2130"]
[BlackElo "2379"]
[Annotator "NA"]
[PlyCount "70"]
[EventDate "2019.08.26"]
[EventType "team-tourn"]
[EventCountry "MAR"]
[SourceTitle "playchess.com"]
[Source "ChessBase"]
[SourceQuality "1"]
[TimeControl "900+10"]

1. e4 {[%emt 0:00:00]} d6 {[%emt 0:00:00]} 2. d4 {[%emt 0:00:01]} g6 {[%emt 0:00:01]} 3. Nc3 {[%emt 0:00:02]} Bg7 {[%emt 0:00:01]} 4. f4 {[%emt 0:00:01]} a6 {[%emt 0:00:14]} 5. Nf3 {[%emt 0:00:10]} Nd7 {[%emt 0:00:07]} 6. Bd3 {[%emt 0:00:20]} c5 {[%emt 0:00:03]} 7. Be3 {[%emt 0:01:29]} cxd4 {[%emt 0:00:49]} 8. Nxd4 {[%emt 0:00:08]} Ngf6 {[%emt 0:00:16]} 9. Nb3 {[%emt 0:01:10]} O-O {[%emt 0:00:16]} 10. a4 {[%emt 0:00:32]} b6 {[%emt 0:00:06]} 11. O-O {[%emt 0:00:05]} Bb7 {[%emt 0:00:01]} 12. Qe2 {[%emt 0:00:38]} Qc7 {[%emt 0:00:17]} 13. Bf2 {[%emt 0:00:43]} Rfe8 {[%emt 0:00:55]} 14. Bg3 {[%emt 0:00:27]} Nh5 {[%emt 0:01:16]} 15. Be1 {[%emt 0:00:25]} e5 {[%emt 0:00:10]} 16. f5 {[%emt 0:01:09]} Nf4 {[%emt 0:00:01]} 17. Qg4 {[%emt 0:00:52]} Nf6 {[%emt 0:00:29]} 18. Qh4 {[%emt 0:01:25]} gxf5 {[%emt 0:00:06]} 19. Rxf4 {[%emt 0:01:52]} exf4 {[%emt 0:00:04]} 20. exf5 {[%emt 0:00:02]} Qc6 {[%emt 0:03:33]} 21. Bf1 {[%emt 0:01:58]} f3 {[%emt 0:00:02]} 22. Nd4 {[%emt 0:00:54]} Qc5 {[%emt 0:00:10]} 23. Bf2 {[%emt 0:00:01]} Ne4 {[%emt 0:01:18]} 24. Nxe4 {[%emt 0:00:08]} Rxe4 {[%emt 0:00:01]} 25. Qg3 {[%emt 0:01:08]} Qe5 {[%emt 0:01:04]} 26. Nxf3 {[%emt 0:00:57]} Qxg3 {[%emt 0:00:05]} 27. Bxg3 {[%emt 0:00:09]} Bxb2 {[%emt 0:00:02]} 28. Rb1 {[%emt 0:00:02]} Ba3 {[%emt 0:00:01]} 29. Bf2 {[%emt 0:00:47]} Rxa4 {[%emt 0:00:01]} 30. Rxb6 {[%emt 0:00:05]} Be4 {[%emt 0:00:29]} 31. f6 {[%emt 0:00:33]} Bxc2 {[%emt 0:00:06]} 32. Be3 {[%emt 0:00:31]} Re4 {[%emt 0:00:50]} 33. Bf2 {[%emt 0:00:08]} a5 {[%emt 0:01:56]} 34. Ba6 {[%emt 0:00:21]} Rb4 {[%emt 0:00:17]} 35. Rc6 {[%emt 0:00:16]} Be4 {[%emt 0:00:08]} 0-1

[Event "African Games Rapid Open 2019"]
[Site "Casablanca"]
[Date "2019.08.27"]
[Round "8.13"]
[White "Eichab, Charles"]
[Black "Khetho, Phemelo"]
[Result "0-1"]
[ECO "A01"]
[WhiteElo "2016"]
[BlackElo "2178"]
[Annotator "NA"]
[PlyCount "96"]
[EventDate "2019.08.26"]
[EventType "team-tourn"]
[EventCountry "MAR"]
[SourceTitle "playchess.com"]
[Source "ChessBase"]
[SourceQuality "1"]
[TimeControl "900+10"]

1. b3 {[%emt 0:00:00]} Nf6 {[%emt 0:00:00]} 2. Bb2 {[%emt 0:00:00]} d6 {[%emt 0:00:01]} 3. d4 {[%emt 0:02:03]} g6 {[%emt 0:00:07]} 4. g3 {[%emt 0:00:16]} Bg7 {[%emt 0:00:02]} 5. Bg2 {[%emt 0:00:01]} O-O {[%emt 0:00:05]} 6. Nd2 {[%emt 0:00:06]} c5 {[%emt 0:00:48]} 7. dxc5 {[%emt 0:00:11]} dxc5 {[%emt 0:00:03]} 8. Ngf3 {[%emt 0:00:07]} Nc6 {[%emt 0:00:03]} 9. O-O {[%emt 0:00:02]} Bf5 {[%emt 0:00:13]} 10. Ne5 {[%emt 0:02:37]} Nxe5 {[%emt 0:00:12]} 11. Bxe5 {[%emt 0:00:02]} Qc8 {[%emt 0:00:09]} 12. e4 {[%emt 0:00:50]} Bg4 {[%emt 0:00:04]} 13. f3 {[%emt 0:00:10]} Bh3 {[%emt 0:00:02]} 14. Qe2 {[%emt 0:00:06]} Bxg2 {[%emt 0:00:06]} 15. Kxg2 {[%emt 0:00:02]} Rd8 {[%emt 0:00:39]} 16. Nc4 {[%emt 0:00:15]} Qc6 {[%emt 0:00:49]} 17. Rad1 {[%emt 0:00:21]} b5 {[%emt 0:04:14]} 18. Ne3 {[%emt 0:01:37]} a6 {[%emt 0:01:44]} 19. Rxd8+ {[%emt 0:03:11]} Rxd8 {[%emt 0:00:02]} 20. Rd1 {[%emt 0:00:01]} Rxd1 {[%emt 0:01:57]} 21. Qxd1 {[%emt 0:00:01]} Ne8 {[%emt 0:00:11]} 22. Bxg7 {[%emt 0:00:11]} Kxg7 {[%emt 0:00:01]} 23. Qd5 {[%emt 0:00:02]} Qxd5 {[%emt 0:00:53]} 24. exd5 {[%emt 0:00:32]} Nd6 {[%emt 0:00:14]} 25. c4 {[%emt 0:00:27]} f5 {[%emt 0:00:26]} 26. Kf2 {[%emt 0:00:31]} Kf6 {[%emt 0:00:02]} 27. Ke2 {[%emt 0:00:01]} g5 {[%emt 0:00:31]} 28. f4 {[%emt 0:02:25]} gxf4 {[%emt 0:00:40]} 29. gxf4 {[%emt 0:00:01]} Ne4 {[%emt 0:00:05]} 30. cxb5 {[%emt 0:00:35]} axb5 {[%emt 0:00:03]} 31. Kd3 {[%emt 0:00:18]} e5 {[%emt 0:00:07]} 32. Ng4+ {[%emt 0:00:37]} fxg4 {[%emt 0:00:24]} 33. Kxe4 {[%emt 0:00:01]} exf4 {[%emt 0:00:05]} 34. Kxf4 {[%emt 0:00:03]} h5 {[%emt 0:00:03]} 35. a4 {[%emt 0:00:36]} c4 {[%emt 0:00:33]} 36. a5 {[%emt 0:01:01]} cxb3 {[%emt 0:00:02]} 37. a6 {[%emt 0:00:16]} b2 {[%emt 0:00:05]} 38. a7 {[%emt 0:00:02]} b1=Q {[%emt 0:00:03]} 39. a8=Q {[%emt 0:00:04]} Qc1+ {[%emt 0:00:58]} 40. Ke4 {[%emt 0:00:19]} Qc2+ {[%emt 0:00:03]} 41. Kd4 {[%emt 0:00:37]} Qc4+ {[%emt 0:00:14]} 42. Ke3 {[%emt 0:00:02]} Qc3+ {[%emt 0:00:09]} 43. Ke4 {[%emt 0:00:12]} Qe5+ {[%emt 0:00:02]} 44. Kd3 {[%emt 0:00:05]} Qxh2 {[%emt 0:00:18]} 45. Qc6+ {[%emt 0:00:06]} Kg5 {[%emt 0:00:14]} 46. d6 {[%emt 0:00:41]} Qg3+ {[%emt 0:00:22]} 47. Kd2 {[%emt 0:00:23]} Qf4+ {[%emt 0:00:29]} 48. Ke2 {[%emt 0:00:28]} Qf3+ {[%emt 0:00:05]} 0-1